lending/lending_fUSD_20240112
["ID","MTS","AMOUNT","RATE_DAILY","PERIOD"]
[311426920,1705091452695,-658.1250538,0.00037382,2]
[311426921,1705091452705,-51299.81056091,0.00037382,2]
[311426922,1705091452715,-19330.14640478,0.00037382,120]
[311426923,1705091452725,-427.11679226,0.00037382,2]
[311426924,1705091452737,-7247.38915019,0.00037382,120]
[311426925,1705091452748,-1000.0,0.00037382,60]
[311426926,1705091452758,-1000.0,0.00037382,120]
[311426927,1705091452768,-1000.0,0.00037382,60]
[311426928,1705091452779,-1000.0,0.00037382,30]
[311426929,1705091452790,-647.575525,0.00037382,30]
[311426930,1705091452799,-6393.63984723,0.00037382,120]
[311426931,1705091452810,-234.6196376,0.00037382,30]
[311426932,1705091452820,-1123.0,0.00037382,2]
[311426933,1705091452831,-2007.72182858,0.00037382,3]
[311426934,1705091452842,-53465.74359879,0.00037382,120]
[311426935,1705091452853,-7123.18470519,0.00037382,120]
[311426936,1705091452864,-1466.3007047,0.00037382,2]
[311426937,1705091452875,-14943.99919207,0.00037382,60]
[311426938,1705091452886,-1569.58375686,0.00037382,2]
[311426939,1705091452896,-345125.94346834,0.00037382,30]
[311426940,1705091452906,-860.76758786,0.00037382,30]
[311426941,1705091452917,-10217.34407488,0.00037382,60]
[311426942,1705091452927,-3766.08375358,0.00037382,2]
[311426943,1705091452937,-332.51125245,0.00037382,2]
[311426944,1705091452946,-342960.68,0.00037382,30]
[311426945,1705091452958,-1903.885807,0.00037382,30]
[311426946,1705091452969,-305.136571,0.00037382,30]
[311426947,1705091452980,-1967.195731,0.00037382,30]
[311426948,1705091452990,-271.21547758,0.00037414,4]
[311426949,1705091453001,-491.84,0.0003743,2]
[311426950,1705091453013,-153.84,0.00037443,2]
[311426951,1705091453025,-657.26697925,0.000375,2]
[311426952,1705091453039,-1490.0,0.000375,12]
[311426953,1705091453052,-2000.0,0.000375,2]
[311426954,1705091453064,-1000.0,0.000375,2]
[311426955,1705091453076,-1906.82337,0.000375,2]
[311426956,1705091453088,-598.92,0.00037534,4]
[311426957,1705091453098,-150.0,0.00037538,2]
[311426958,1705091453108,-150.0,0.00037538,2]
[311426959,1705091453118,-150.0,0.00037538,2]
[311426960,1705091453128,-761.666924,0.00037571,4]
[311426961,1705091453137,-150.0,0.00037578,2]
[311426962,1705091453147,-300.0,0.00037578,2]
[311426963,1705091453158,-150.0,0.00037578,2]
[311426964,1705091453169,-150.0,0.00037578,2]
[311426965,1705091453180,-150.0,0.00037578,2]
[311426966,1705091453190,-150.0,0.00037578,2]
[311426967,1705091453200,-150.0,0.00037578,2]
[311426968,1705091453210,-150.0,0.00037578,2]
[311426969,1705091453219,-150.0,0.00037578,2]
[311426970,1705091453228,-150.0,0.00037578,2]
[311426971,1705091453239,-150.0,0.00037578,2]
[311426972,1705091453249,-150.0,0.00037578,2]
[311426973,1705091453259,-4023.06915741,0.0003759,2]
[311426974,1705091453270,-221.75135612,0.00037613,2]
[311426975,1705091453280,-6375.77483834,0.00037699,2]
[311426976,1705091453290,-3637.91,0.000377,7]
[311426977,1705091453300,-160.31449389,0.00037701,7]
[311426978,1705091453309,-7390.91,0.000378,7]
[311426979,1705091453321,-2231.92,0.000378,7]
[311426980,1705091453334,-150.0,0.000378,27]
[311426981,1705091453345,-15560.88794363,0.000378,11]
[311426982,1705091453356,-6909.85,0.00037808,2]
[311426983,1705091453368,-4744.99,0.00037808,2]
[311426984,1705091453379,-152.67626458,0.00037812,7]
[311426985,1705091453389,-918.58048648,0.00037838,8]
[311426986,1705091453401,-1995.9,0.0003784,2]
[311426987,1705091453411,-151.68408553,0.00037845,7]
[311426988,1705091453422,-204.27,0.0003787,120]
[311426989,1705091453433,-2108.0,0.0003787,120]
[311426990,1705091453445,-150.5,0.0003788,120]
[311426991,1705091453455,-2108.0,0.0003788,120]
[311426992,1705091453465,-150.5,0.0003789,120]
[311426993,1705091453476,-14406.0,0.0003789,3]
[311426994,1705091453487,-2108.0,0.0003789,120]
[311426995,1705091453499,-150.0,0.00037899,2]
[311426996,1705091453511,-161.0,0.000379,7]
[311426997,1705091453521,-151.0,0.000379,7]
[311426998,1705091453531,-151.0,0.000379,7]
[311426999,1705091453542,-334.104131,0.000379,7]
[311427000,1705091453553,-334.104131,0.000379,7]
[311427001,1705091453564,-151.0,0.000379,7]
[311427002,1705091453577,-151.0,0.000379,7]
[311427003,1705091453586,-151.0,0.000379,7]
[311427004,1705091453595,-223.032232,0.000379,7]
[311427005,1705091453605,-223.032232,0.000379,7]
[311427006,1705091453615,-151.0,0.000379,7]
[311427007,1705091453624,-716.256,0.000379,7]
[311427008,1705091453634,-716.256,0.000379,7]
[311427009,1705091453643,-197.106518,0.000379,7]
[311427010,1705091453653,-197.106518,0.000379,7]
[311427011,1705091453662,-151.0,0.000379,7]
[311427012,1705091453672,-151.0,0.000379,7]
[311427013,1705091453682,-151.0,0.000379,7]
[311427014,1705091453691,-644696.526797,0.000379,3]
[311427015,1705091453700,-152.67626458,0.00037937,7]
[311427016,1705091453709,-155.6500072,0.00037955,7]
[311427017,1705091453719,-2563.20839699,0.00037997,2]
[311427018,1705091453728,-100000.0,0.00038,8]
[311427019,1705091453738,-25000.0,0.00038,15]
[311427020,1705091453749,-3076.35318556,0.00038,4]
[311427021,1705091453758,-113580.66387956,0.00038,4]
[311427022,1705091453768,-1049.67172007,0.00038,2]
[311427023,1705091453778,-500.0,0.00038,2]
[311427024,1705091453788,-3637.91,0.00038,7]
[311427025,1705091453797,-4714.69475696,0.00038,14]
[311427026,1705091453958,-382.462268,0.00038,12]
[311427027,1705091453994,-151.68408553,0.00038003,7]
[311427028,1705091454006,-156.05480545,0.00038032,7]
[311427029,1705091454018,-152.0,0.00038033,4]
[311427030,1705091454029,-151.68408553,0.0003804,7]
[311427031,1705091454040,-2366.66472099,0.00038085,2]
[311427032,1705091454050,-156.96192971,0.00038095,7]
[311427033,1705091454059,-153.80314389,0.00038109,7]
[311427034,1705091454070,-152.67626458,0.00038187,7]
[311427035,1705091454081,-157.0,0.00038203,2]
[311427036,1705091454092,-157.0,0.00038213,2]
[311427037,1705091454103,-150.0,0.00038259,2]
[311427038,1705091454114,-180.075391,0.0003828,2]
[311427039,1705091454124,-150.0,0.00038296,2]
[311427040,1705091454134,-150.0,0.00038296,2]
[311427041,1705091454145,-300.0,0.00038296,2]
[311427042,1705091454155,-7390.91,0.000383,7]
[311427043,1705091454165,-2231.92,0.000383,7]
[311427044,1705091454174,-195.0,0.000383,27]
[311427045,1705091454184,-155.6500072,0.00038327,7]
[311427046,1705091454194,-3896.44,0.00038352,2]
[311427047,1705091454207,-600.0,0.00038356,2]
[311427048,1705091454217,-600.0,0.00038356,2]
[311427049,1705091454227,-600.0,0.00038356,2]
[311427050,1705091454240,-600.0,0.00038356,2]
[311427051,1705091454252,-394.5469155,0.00038356,2]
[311427052,1705091454263,-666.0,0.00038356,2]
[311427053,1705091454274,-500.0,0.00038356,2]
[311427054,1705091454284,-153.84,0.00038356,2]
[311427055,1705091454295,-999.0,0.000384,2]
[311427056,1705091454306,-151.74,0.00038425,2]
[311427057,1705091454317,-204.0,0.00038472,22]
[311427058,1705091454329,-155.04727311,0.00038494,7]
[311427059,1705091454340,-489.02623996,0.000385,4]
[311427060,1705091454350,-2000.0,0.000385,2]
[311427061,1705091454362,-1000.0,0.000385,2]
[311427062,1705091454374,-1000.0,0.000385,2]
[311427063,1705091454385,-150.0,0.00038532,2]
[311427064,1705091454396,-160.31449389,0.00038593,7]
[311427065,1705091454407,-680.66,0.000386,7]
[311427066,1705091454417,-1000.0,0.00038605,10]
[311427067,1705091454428,-153.76348353,0.00038629,7]
[311427068,1705091454439,-157.49412759,0.00038644,7]
[311427069,1705091454449,-1995.9,0.0003868,2]
[311427070,1705091454460,-155.53007045,0.000387,4]
[311427071,1705091454470,-161.0,0.000387,7]
[311427072,1705091454480,-5034.94254246,0.000387,3]
[311427073,1705091454491,-3000.0,0.000387,10]
[311427074,1705091454502,-1176.45273007,0.00038765,2]
[311427075,1705091454513,-500.0,0.00038767,2]
[311427076,1705091454523,-152.55404131,0.00038782,7]
[311427077,1705091454533,-26701.89745549,0.000388,4]
[311427078,1705091454542,-352.38366852,0.000388,24]
[311427079,1705091454553,-7390.91,0.000388,7]
[311427080,1705091454564,-2231.92,0.000388,7]
[311427081,1705091454574,-1000.0,0.0003888,10]
[311427082,1705091454585,-2379.56,0.000389,3]
[311427083,1705091454596,-2379.56,0.000389,3]
[311427084,1705091454608,-2379.56,0.000389,3]
[311427085,1705091454619,-2379.56,0.000389,3]
[311427086,1705091454630,-2379.56,0.000389,3]
[311427087,1705091454640,-2379.56,0.000389,3]
[311427088,1705091454650,-2379.56,0.000389,3]
[311427089,1705091454660,-2379.56,0.000389,3]
[311427090,1705091454670,-2379.56,0.000389,3]
[311427091,1705091454680,-2379.56,0.000389,3]
[311427092,1705091454690,-2379.56,0.000389,3]
[311427093,1705091454700,-2379.56,0.000389,3]
[311427094,1705091454710,-2379.56,0.000389,3]
[311427095,1705091454720,-2379.56,0.000389,3]
[311427096,1705091454730,-2379.56,0.000389,3]
[311427097,1705091454742,-2379.56,0.000389,3]
[311427098,1705091454751,-2379.56,0.000389,3]
[311427099,1705091454761,-2379.56,0.000389,3]
[311427100,1705091454771,-2379.56,0.000389,3]
[311427101,1705091454781,-2379.56,0.000389,3]
[311427102,1705091454791,-157.77,0.000389,3]
[311427103,1705091454803,-157.77,0.000389,3]
[311427104,1705091454812,-1000.0,0.00038914,10]
[311427105,1705091454822,-156.05480545,0.00038955,7]
[311427106,1705091454832,-1000.0,0.00038956,10]
[311427107,1705091454841,-2108.0,0.0003897,120]
[311427108,1705091454851,-281.79561479,0.0003898,2]
[311427109,1705091454861,-2108.0,0.0003898,120]
[311427110,1705091454871,-2108.0,0.0003898,120]
[311427111,1705091454880,-1000.0,0.00038984,11]
[311427112,1705091454890,-8781.0,0.0003899,3]
[311427113,1705091454900,-2108.0,0.0003899,120]
[311427114,1705091454910,-2108.0,0.0003899,120]
[311427115,1705091454919,-100000.0,0.00039,9]
[311427116,1705091454929,-974.80075541,0.00039,4]
[311427117,1705091454939,-1427.73011581,0.00039,2]
[311427118,1705091454950,-683.14499984,0.00039,2]
[311427119,1705091454963,-196.81300889,0.00039,4]
[311427120,1705091454973,-1113.07076885,0.00039,2]
[311427121,1705091454984,-423.32358218,0.00039,120]
[311427122,1705091454994,-25000.0,0.00039,15]
[311427123,1705091455004,-216.22340997,0.00039,7]
[311427124,1705091455014,-167829.89659137,0.00039,2]
[311427125,1705091455025,-198061.75664693,0.00039,2]
[311427126,1705091455552,-70198.83205815,0.00039,2]
[311427127,1705091455562,-1000.0,0.00039,4]
[311427128,1705091455575,-500.0,0.00039,2]
[311427129,1705091455586,-18231.45453141,0.00039,5]
[311427130,1705091455599,-156.05480545,0.00039016,7]
[311427131,1705091455610,-160.31449389,0.00039084,7]
[311427132,1705091455620,-150.0,0.00039116,2]
[311427133,1705091455631,-4467.4183255,0.00039136,2]
[311427134,1705091455644,-160.31449389,0.00039144,7]
[311427135,1705091455654,-153.76348353,0.00039152,7]
[311427136,1705091455665,-2235.8455273,0.00039163,2]
[311427137,1705091455675,-76277.5115741,0.00039163,2]
[311427138,1705091455686,-150.0,0.00039166,2]
[311427139,1705091455696,-1413.03750767,0.00039178,3]
[311427140,1705091455706,-155.6500072,0.00039189,7]
[311427141,1705091455715,-1000.0,0.00039193,10]
[311427142,1705091455724,-152.67626458,0.00039201,7]
[311427143,1705091455735,-155.6500072,0.00039215,7]
[311427144,1705091455745,-1000.0,0.0003922,10]
[311427145,1705091455754,-1000.0,0.0003923,10]
[311427146,1705091455764,-1000.0,0.0003923,10]
[311427147,1705091455774,-1000.0,0.00039234,15]
[311427148,1705091455783,-240.37,0.0003926,2]
[311427149,1705091455793,-151.68408553,0.00039268,7]
[311427150,1705091455803,-153.84,0.00039269,2]
[311427151,1705091455812,-7390.91,0.000393,7]
[311427152,1705091455821,-2231.92,0.000393,7]
[311427153,1705091455832,-151.68408553,0.00039332,7]
[311427154,1705091455841,-1000.0,0.00039364,10]
[311427155,1705091455851,-156.96192971,0.00039366,7]
[311427156,1705091455861,-1000.0,0.00039372,10]
[311427157,1705091455870,-1000.0,0.00039383,10]
[311427158,1705091455880,-162.85156492,0.00039397,7]
[311427159,1705091455889,-153.59176384,0.0003945,7]
[311427160,1705091455899,-2000.0,0.000395,2]
[311427161,1705091455908,-161.0,0.000395,7]
[311427162,1705091455918,-1000.0,0.000395,2]
[311427163,1705091455928,-1000.0,0.000395,2]
[311427164,1705091455937,-153.59176384,0.00039505,7]
[311427165,1705091455947,-1995.9,0.0003952,2]
[311427166,1705091455958,-1000.0,0.00039524,31]
[311427167,1705091455970,-155.6500072,0.00039534,7]
[311427168,1705091455980,-2563.20839699,0.00039597,2]
[311427169,1705091455991,-155.04727311,0.00039598,7]
[311427170,1705091456002,-5000.0,0.000396,30]
[311427171,1705091456013,-48033.33465609,0.000396,7]
[311427172,1705091456027,-73906.39638932,0.000396,7]
[311427173,1705091456053,-154.0,0.00031,2]
[311427174,1705091456062,-352.04593963,0.000396,7]
[311427175,1705091456074,-4246.87405486,0.000396,7]
[311427176,1705091456086,-620.84949239,0.000396,7]
[311427177,1705091456098,-1702.55760942,0.000396,7]
[311427178,1705091456129,-500.0,0.000396,7]
[311427179,1705091456225,-154.0,0.00031,2]
[311427180,1705091456235,-1062.30283472,0.000396,7]
[311427181,1705091456248,-509.82256983,0.000396,7]
[311427182,1705091456261,-276.6655929,0.000396,7]
[311427183,1705091456274,-492.59844327,0.000396,7]
[311427184,1705091456995,-157.19540884,0.00026078,2]
[311427185,1705091457011,-3187.92110264,0.000396,7]
[311427186,1705091457024,-485.98464148,0.000396,7]
[311427187,1705091457062,-2392.2471536,0.000396,7]
[311427188,1705091457076,-3353.14410241,0.000396,7]
[311427189,1705091457090,-2197.92457149,0.000396,7]
[311427190,1705091457103,-524.8873471,0.000396,7]
[311427191,1705091457142,-1395.97492438,0.000396,7]
[311427192,1705091457155,-20880.3489431,0.000396,7]
[311427193,1705091457168,-6555.469708,0.000396,7]
[311427194,1705091457206,-4014.65394985,0.000396,7]
[311427195,1705091457219,-10124.40477903,0.000396,7]
[311427196,1705091457241,-13183.59119449,0.000396,7]
[311427197,1705091457252,-150.0,0.000396,7]
[311427198,1705091457262,-150.0,0.000396,7]
[311427199,1705091457275,-277.37746626,0.000396,7]
[311427200,1705091457287,-284.89859826,0.000396,7]
[311427201,1705091457297,-150.0,0.000396,7]
[311427202,1705091457309,-150.0,0.000396,7]
[311427203,1705091457319,-150.0,0.000396,7]
[311427204,1705091457330,-271.93392089,0.000396,7]
[311427205,1705091457340,-164.0867999,0.000396,7]
[311427206,1705091457351,-153.60099764,0.000396,7]
[311427207,1705091457365,-155.6500072,0.00039602,7]
[311427208,1705091457375,-158.95687313,0.00039612,7]
[311427209,1705091457388,-3896.44,0.0003963,2]
[311427210,1705091457399,-2366.66472099,0.00039664,2]
[311427211,1705091457410,-491.84,0.00039694,2]
[311427212,1705091457422,-8000.0,0.000397,2]
[311427213,1705091457433,-1000.0,0.000397,2]
[311427214,1705091457444,-156.05480545,0.00039738,7]
[311427215,1705091457455,-204.0,0.00039738,24]
[311427216,1705091457466,-1826.85507752,0.00039757,2]
[311427217,1705091457479,-4316.0487089,0.00039757,2]
[311427218,1705091457491,-4718.14201091,0.00039757,2]
[311427219,1705091457502,-7473.60443344,0.00039757,2]
[311427220,1705091457513,-400.0,0.0003977,2]
[311427221,1705091457523,-300.0,0.0003977,2]
[311427222,1705091457534,-150.0,0.00039799,2]
[311427223,1705091457545,-981.42335294,0.000398,4]
[311427224,1705091457558,-7390.91,0.000398,7]
[311427225,1705091457569,-10135.0,0.000398,30]
[311427226,1705091457581,-3000.0,0.000398,24]
[311427227,1705091457592,-221.75135612,0.000398,5]
[311427228,1705091457603,-166.74308777,0.000398,2]
[311427229,1705091457616,-152.55404131,0.00039806,7]
[311427230,1705091457628,-3000.0,0.0003981,24]
[311427231,1705091457640,-5466.558368,0.0003982,24]
[311427232,1705091457651,-2660.2380519,0.00039873,2]
[311427233,1705091457661,-90755.9741135,0.00039873,2]
[311427234,1705091457671,-5302.1283975,0.00039873,2]
[311427235,1705091457682,-500.0,0.0003989,21]
[311427236,1705091457692,-500.0,0.0003989,21]
[311427237,1705091457706,-68070.0,0.0003989,3]
[311427238,1705091457717,-2563.20839699,0.00039897,2]
[311427239,1705091457728,-350.00045838,0.000399,4]
[311427240,1705091457741,-899208.61162494,0.000399,7]
[311427241,1705091457758,-579.19488719,0.000399,7]
[311427242,1705091457808,-1586.16590986,0.000399,7]
[311427243,1705091457820,-495.5,0.000399,7]
[311427244,1705091459110,-4655.96900554,0.00022199,2]
[311427245,1705091459124,-25072.45879446,0.00022199,2]
[311427246,1705091459135,-4621.13534741,0.00023287,2]
[311427247,1705091459146,-1178.0,0.00025263,2]
[311427248,1705091459156,-814.52419731,0.000294,2]
[311427249,1705091459168,-1025.9,0.00032496,2]
[311427250,1705091459179,-867.06892149,0.000359,2]
[311427251,1705091459189,-4871.28890331,0.000399,7]
[311427252,1705091459310,-1408.87170037,0.000399,7]
[311427253,1705091459463,-43996.09283063,0.000399,7]
[311427262,1705091657252,172.5728581,0.00022099,2]
[311427263,1705091661468,165.4,0.00021234,2]
[311427264,1705091669178,2000.0,0.00021234,2]
[311427265,1705091790088,1250.0,0.00022,3]
[311427266,1705091790558,167.83,0.00021234,2]
[311427267,1705091857532,158.17,0.00021446,2]
[311427268,1705091857756,158.17,0.00021894,2]
[311427269,1705092059449,-500.89319127,0.00022187,2]
[311427270,1705092059471,-528.68959497,0.00022188,2]
[311427271,1705092059490,-288.58780713,0.00022188,2]
[311427272,1705092059510,-16746.77665301,0.00022188,2]
[311427273,1705092059531,-155.0,0.00022189,2]
[311427274,1705092059551,-318.31330327,0.00022189,2]
[311427275,1705092059571,-2605.00000774,0.00022189,2]
[311427276,1705092059591,-3001.53867376,0.00022189,2]
[311427277,1705092059610,-2617.16595295,0.00022189,2]
[311427278,1705092059630,-163.7690261,0.00022189,2]
[311427279,1705092059648,-207.56937403,0.00022189,2]
[311427280,1705092059668,-765.80999369,0.0002219,2]
[311427281,1705092059688,-3141.15835728,0.0002219,2]
[311427282,1705092059708,-2265.8208508,0.00022191,2]
[311427283,1705092059730,-33719.15430606,0.00022191,2]
[311427284,1705092059751,-7457.22634231,0.00022193,2]
[311427285,1705092059770,-150.0,0.00022196,2]
[311427286,1705092059790,-150.0,0.00022196,2]
[311427287,1705092059811,-381.62046734,0.00022197,2]
[311427288,1705092059831,-500.0,0.00022199,2]
[311427289,1705092059851,-294.6467,0.00022199,2]
[311427290,1705092060059,-150.99,0.00022342,2]
[311427291,1705092060081,-3741.64,0.00022342,2]
[311427292,1705092060103,-158.17,0.00022342,2]
[311427293,1705092060124,-69990.45939829,0.00022499,2]
[311427294,1705092072132,-363.35937051,0.000224,2]
[311427295,1705092072151,-3001.53867376,0.00022498,2]
[311427296,1705092072169,-318.31330327,0.00022498,2]
[311427297,1705092072189,-435.21804576,0.00022498,2]
[311427298,1705092072209,-5881.5706067,0.00022499,2]
[311427299,1705092190091,150.0,0.00020894,2]
[311427300,1705092190112,150.0,0.00020894,2]
[311427301,1705092190134,150.0,0.00020894,2]
[311427302,1705092190154,150.0,0.00020894,2]
[311427303,1705092190177,49.79,0.00020894,2]
[311427304,1705092450787,1000.0,0.00021746,2]
[311427305,1705092485264,158.36,0.00021946,2]
[311427306,1705092513334,-765.80999369,0.00022265,2]
[311427307,1705092513353,-3141.15835728,0.00022265,2]
[311427308,1705092513373,-725.01,0.00022266,2]
[311427309,1705092513393,-734.47,0.00022266,2]
[311427310,1705092513412,-150.0,0.00022267,2]
[311427311,1705092513432,-712.87,0.00022268,2]
[311427312,1705092513451,-722.73,0.00022268,2]
[311427313,1705092513471,-733.32,0.00022268,2]
[311427314,1705092513490,-719.01,0.00022269,2]
[311427315,1705092513510,-712.24,0.0002227,2]
[311427316,1705092513529,-715.25,0.0002227,2]
[311427317,1705092513549,-712.16,0.00022271,2]
[311427318,1705092513569,-21441.11879048,0.00022272,2]
[311427319,1705092513593,-202.18478343,0.00022299,2]
[311427320,1705092513613,-823.96311055,0.00022299,2]
[311427321,1705092513636,-574.11280405,0.00022299,2]
[311427322,1705092513657,-164514.59216052,0.00022398,2]
[311427324,1705092600818,150.0,0.00021934,2]
[311427325,1705092600839,68.21,0.00021934,2]
[311427326,1705092607354,81.79,0.00022058,2]
[311427327,1705092607376,70.59,0.00022058,2]
[311427328,1705092623472,79.41,0.000216,2]
[311427329,1705092623497,87.32,0.000216,2]
[311427341,1705092633448,62.68,0.00019658,2]
[311427346,1705092633469,150.0,0.00019658,2]
[311427351,1705092633489,150.0,0.00019658,2]
[311427354,1705092633509,254.62,0.00019658,2]
[311427380,1705092633801,40.74,0.00021922,2]
[311427381,1705092633821,576.56,0.00021922,2]
[311427388,1705092633961,-152.38,0.00022173,2]
[311427390,1705092633970,-345.73106583,0.00022264,2]
[311427402,1705092634069,-287.75294492,0.00022264,2]
[311427404,1705092634081,-77.58598925,0.00022264,2]
[311427406,1705092634090,-193.90872294,0.00022264,2]
[311427408,1705092634101,-406.87954676,0.00022264,2]
[311427411,1705092634112,-571.52159298,0.00022264,2]
[311427413,1705092634124,-1968.8484946,0.00022264,2]
[311427415,1705092634134,-194.19156882,0.00022265,2]
[311427418,1705092634158,-335.00350038,0.00022265,2]
[311427421,1705092634170,-180.6549308,0.00022265,2]
[311427423,1705092634179,-722.27,0.00022267,2]
[311427425,1705092634188,-711.14,0.00022269,2]
[311427427,1705092634196,-13.1678692,0.00022273,2]
[311427428,1705092634208,-724.5121308,0.00022273,2]
[311427430,1705092634217,-152.38,0.00022288,2]
[311427432,1705092634227,-11328.28491121,0.00022299,2]
[311427434,1705092634236,-240.67908843,0.00022299,2]
[311427436,1705092634245,-469.83729603,0.00022388,2]
[311427437,1705092634254,-551.37931886,0.00022397,2]
[311427438,1705092634263,-113691.62884238,0.00022398,2]
[311427439,1705092634276,-1529.62874683,0.00022398,2]
[311427440,1705092634287,-7368.5116722,0.00022398,2]
[311427441,1705092634344,-248671.81467882,0.00022398,2]
[311427442,1705092634355,-267.96954897,0.00022398,2]
[311427443,1705092634367,-12471.0,0.00022398,2]
[311427444,1705092634386,-510.08900971,0.00022398,2]
[311427445,1705092634471,-1069.12322619,0.00022398,2]
[311427446,1705092634482,-562.34159793,0.00022398,2]
[311427447,1705092634508,-358.97557567,0.00022398,2]
[311427448,1705092634521,-1400.0,0.00022398,2]
[311427449,1705092634549,-3325.42039862,0.00022398,2]
[311427450,1705092634663,-1463.55396328,0.00022398,2]
[311427451,1705092634674,-2933.54519977,0.00022398,2]
[311427454,1705092638609,-499.99,0.00022299,2]
[311427455,1705092638619,-548.85,0.00022299,2]
[311427456,1705092638629,-495643.86282421,0.00022398,2]
[311427457,1705092638640,-932.67013325,0.00022399,2]
[311427458,1705092638650,-4597.5964,0.00022399,2]
[311427459,1705092638662,-1000.0,0.00022399,2]
[311427460,1705092638672,-321872.9985,0.00022399,2]
[311427461,1705092638681,-250.8774,0.00022399,2]
[311427462,1705092638691,-2500.0,0.00022399,2]
[311427463,1705092638700,-263.95992573,0.00022399,2]
[311427464,1705092638711,-166.74308777,0.000224,2]
[311427465,1705092638721,-152.38,0.00022403,2]
[311427466,1705092638730,-1237.96062784,0.00022418,2]
[311427467,1705092638741,-215.50411754,0.00022418,2]
[311427468,1705092638752,-999.99,0.00022491,2]
[311427469,1705092638765,-7061.87,0.00022491,2]
[311427470,1705092638775,-5796.59201624,0.00022491,2]
[311427471,1705092638785,-357.35420068,0.00022497,2]
[311427472,1705092638796,-207.56937403,0.00022497,2]
[311427473,1705092638806,-288.20564999,0.00022497,2]
[311427474,1705092638815,-1917.72656037,0.00022497,2]
[311427475,1705092638827,-318.31330327,0.00022497,2]
[311427476,1705092638836,-4375.41471774,0.00022497,2]
[311427477,1705092638846,-370.98515418,0.00022498,2]
[311427478,1705092638856,-499.51487532,0.00022498,2]
[311427479,1705092638866,-2615.44247189,0.00022498,2]
[311427481,1705092638876,-2605.87322867,0.00022498,2]
[311427483,1705092638885,-163.7690261,0.00022498,2]
[311427485,1705092638896,-16564.29700488,0.00022498,2]
[311427486,1705092638906,-131185.36736196,0.000225,2]
[311427487,1705092638918,-373739.42327831,0.000225,2]
[311427488,1705092638928,-152.38,0.00022517,2]
[311427489,1705092638938,-200.26885969,0.00022591,2]
[311427490,1705092638947,-152.38,0.00022632,2]
[311427491,1705092638958,-152.38,0.00022747,2]
[311427492,1705092638968,-158.17,0.00022791,2]
[311427493,1705092638978,-155.56865287,0.000228,2]
[311427494,1705092638988,-6892.38,0.000228,2]
[311427495,1705092638997,-469.83729603,0.00022802,2]
[311427496,1705092639007,-1323.48,0.00022812,2]
[311427497,1705092639017,-500.0,0.00022816,2]
[311427498,1705092639027,-152.38,0.00022862,2]
[311427499,1705092639037,-166.7,0.0002294,2]
[311427501,1705092639047,-152.38,0.00022977,2]
[311427503,1705092639056,-933.03463795,0.00023,2]
[311427505,1705092639066,-238.05,0.00023,2]
[311427507,1705092639076,-161.17692113,0.00023047,2]
[311427509,1705092639086,-155.0,0.00023047,2]
[311427512,1705092639099,-152.38,0.00023092,2]
[311427514,1705092639109,-500.0,0.00023182,2]
[311427516,1705092639120,-152.38,0.00023207,2]
[311427518,1705092639129,-158.17,0.00023239,2]
[311427520,1705092639139,-1653.17967422,0.0002328,2]
[311427522,1705092639149,-277.81422268,0.0002328,2]
[311427524,1705092639159,-242.20151819,0.0002328,2]
[311427526,1705092639168,-308.66623732,0.0002328,2]
[311427528,1705092639178,-2294.06747086,0.0002328,2]
[311427531,1705092639187,-203.876292,0.0002328,2]
[311427533,1705092639197,-473.62078422,0.0002328,2]